{"text_format":"3","workbook":"xlsx","n_sheets":1,"sheets":["Праздничный бюджет"],"not_rendered":{"defined_names":1},"read":"whole","date_system":"1900"}

{"sheet":"Праздничный бюджет","index":0,"n_rows":37,"n_cols":12,"rows_kept":37,"merged":[[1,1,7,4],[9,1,9,4],[9,8,9,11],[19,1,19,4],[19,8,19,11],[30,1,30,4],[30,8,30,11]]}
[]
[null,"Праздничный бюджет"]
[]
[{"$nulls":8},"ПРАЗДНИЧНЫЙ БЮДЖЕТ",null,{"$f":"SUM(Подарки[Выделенные],Упаковка[Выделенные],(Командировки[Выделенные],(Питание[Выделенные],(Развлечения[Выделенные],Прочее[Выделенные]))))","v":{"v":750,"d":"750.00 ₽"}}]
[{"$nulls":8},"ФАКТИЧЕСКИЕ РАСХОДЫ",null,{"$f":"SUM((Подарки[Фактические],(Упаковка[Фактические],(Командировки[Фактические],(Питание[Фактические],(Развлечения[Фактические],(Прочее[Фактические])))))))","v":{"v":820,"d":"820.00 ₽"}}]
[]
[{"$nulls":8},"РАЗНИЦА (отклонение от бюджета)",null,{"$f":"SUM(K4-K5)","v":{"v":-70,"d":"-70.00 ₽"}}]
[]
[]
[null,"Подарки",{"$nulls":6},"Праздничные застолья"]
[null,"Позиция","Выделенные","Фактические","Разница",{"$nulls":3},"Позиция","Выделенные","Фактические","Разница"]
[null,"Семья",{"v":500,"d":"500.00 ₽"},{"v":495,"d":"495.00 ₽"},{"$f":"Подарки[[#This Row],[Выделенные]]-Подарки[[#This Row],[Фактические]]","v":{"v":5,"d":"5.00 ₽"}},{"$nulls":3},"Продовольственные товары",null,null,{"$f":"Питание[[#This Row],[Выделенные]]-Питание[[#This Row],[Фактические]]","v":{"v":0,"d":"0.00 ₽"}}]
[null,"Друзья",{"v":250,"d":"250.00 ₽"},{"v":325,"d":"325.00 ₽"},{"$f":"Подарки[[#This Row],[Выделенные]]-Подарки[[#This Row],[Фактические]]","v":{"v":-75,"d":"-75.00 ₽"}},{"$nulls":3},"Алкогольные напитки",null,null,{"$f":"Питание[[#This Row],[Выделенные]]-Питание[[#This Row],[Фактические]]","v":{"v":0,"d":"0.00 ₽"}}]
[null,"Коллеги",null,null,{"$f":"Подарки[[#This Row],[Выделенные]]-Подарки[[#This Row],[Фактические]]","v":{"v":0,"d":"0.00 ₽"}},{"$nulls":3},"Оформление",null,null,{"$f":"Питание[[#This Row],[Выделенные]]-Питание[[#This Row],[Фактические]]","v":{"v":0,"d":"0.00 ₽"}}]
[null,"Преподаватели, воспитатели, няни и т. д.",null,null,{"$f":"Подарки[[#This Row],[Выделенные]]-Подарки[[#This Row],[Фактические]]","v":{"v":0,"d":"0.00 ₽"}},{"$nulls":3},"Другое (нажмите клавишу TAB в последнем столбце этой строки, чтобы добавить строку)",null,null,{"$f":"Питание[[#This Row],[Выделенные]]-Питание[[#This Row],[Фактические]]","v":{"v":0,"d":"0.00 ₽"}}]
[null,"Благотворительные пожертвования",null,null,{"$f":"Подарки[[#This Row],[Выделенные]]-Подарки[[#This Row],[Фактические]]","v":{"v":0,"d":"0.00 ₽"}},{"$nulls":3},"Итог",{"$f":"SUBTOTAL(109,Питание[Выделенные])","v":{"v":0,"d":"0.00 ₽"}},{"$f":"SUBTOTAL(109,Питание[Фактические])","v":{"v":0,"d":"0.00 ₽"}},{"$f":"SUBTOTAL(109,Питание[Разница])","v":{"v":0,"d":"0.00 ₽"}}]
[null,"Другое (нажмите клавишу TAB в последнем столбце этой строки, чтобы добавить строку)",null,null,{"$f":"Подарки[[#This Row],[Выделенные]]-Подарки[[#This Row],[Фактические]]","v":{"v":0,"d":"0.00 ₽"}}]
[null,"Итог",{"$f":"SUBTOTAL(109,Подарки[Выделенные])","v":{"v":750,"d":"750.00 ₽"}},{"$f":"SUBTOTAL(109,Подарки[Фактические])","v":{"v":820,"d":"820.00 ₽"}},{"$f":"SUBTOTAL(109,Подарки[Разница])","v":{"v":-70,"d":"-70.00 ₽"}}]
[]
[null,"Упаковка",{"$nulls":6},"Развлечения"]
[null,"Позиция","Выделенные","Фактические","Разница",{"$nulls":3},"Позиция","Выделенные","Фактические","Разница"]
[null,"Подарочная упаковка",null,null,{"$f":"Упаковка[[#This Row],[Выделенные]]-Упаковка[[#This Row],[Фактические]]","v":{"v":0,"d":"0.00 ₽"}},{"$nulls":3},"Обслуживание вечеринки (бармен, кейтеринговая компания, уборщики и т. д.)",null,null,{"$f":"Развлечения[[#This Row],[Выделенные]]-Развлечения[[#This Row],[Фактические]]","v":{"v":0,"d":"0.00 ₽"}}]
[null,"Ярлыки",null,null,{"$f":"Упаковка[[#This Row],[Выделенные]]-Упаковка[[#This Row],[Фактические]]","v":{"v":0,"d":"0.00 ₽"}},{"$nulls":3},"Оформление",null,null,{"$f":"Развлечения[[#This Row],[Выделенные]]-Развлечения[[#This Row],[Фактические]]","v":{"v":0,"d":"0.00 ₽"}}]
[null,"Расходные материалы (лента, клейкая лента и т. д.)",null,null,{"$f":"Упаковка[[#This Row],[Выделенные]]-Упаковка[[#This Row],[Фактические]]","v":{"v":0,"d":"0.00 ₽"}},{"$nulls":3},"Еда и напитки",null,null,{"$f":"Развлечения[[#This Row],[Выделенные]]-Развлечения[[#This Row],[Фактические]]","v":{"v":0,"d":"0.00 ₽"}}]
[null,"Коробки",null,null,{"$f":"Упаковка[[#This Row],[Выделенные]]-Упаковка[[#This Row],[Фактические]]","v":{"v":0,"d":"0.00 ₽"}},{"$nulls":3},"Одежда",null,null,{"$f":"Развлечения[[#This Row],[Выделенные]]-Развлечения[[#This Row],[Фактические]]","v":{"v":0,"d":"0.00 ₽"}}]
[null,"Почтовые расходы",null,null,{"$f":"Упаковка[[#This Row],[Выделенные]]-Упаковка[[#This Row],[Фактические]]","v":{"v":0,"d":"0.00 ₽"}},{"$nulls":3},"Билеты",null,null,{"$f":"Развлечения[[#This Row],[Выделенные]]-Развлечения[[#This Row],[Фактические]]","v":{"v":0,"d":"0.00 ₽"}}]
[null,"Другое (нажмите клавишу TAB в последнем столбце этой строки, чтобы добавить строку)",null,null,{"$f":"Упаковка[[#This Row],[Выделенные]]-Упаковка[[#This Row],[Фактические]]","v":{"v":0,"d":"0.00 ₽"}},{"$nulls":3},"Ужины вне дома",null,null,{"$f":"Развлечения[[#This Row],[Выделенные]]-Развлечения[[#This Row],[Фактические]]","v":{"v":0,"d":"0.00 ₽"}}]
[null,"Итог",{"$f":"SUBTOTAL(109,Упаковка[Выделенные])","v":{"v":0,"d":"0.00 ₽"}},{"$f":"SUBTOTAL(109,Упаковка[Фактические])","v":{"v":0,"d":"0.00 ₽"}},{"$f":"SUBTOTAL(109,Упаковка[Разница])","v":{"v":0,"d":"0.00 ₽"}},{"$nulls":3},"Другое (нажмите клавишу TAB в последнем столбце этой строки, чтобы добавить строку)",null,null,{"$f":"Развлечения[[#This Row],[Выделенные]]-Развлечения[[#This Row],[Фактические]]","v":{"v":0,"d":"0.00 ₽"}}]
[{"$nulls":8},"Итог",{"$f":"SUBTOTAL(109,Развлечения[Выделенные])","v":{"v":0,"d":"0.00 ₽"}},{"$f":"SUBTOTAL(109,Развлечения[Фактические])","v":{"v":0,"d":"0.00 ₽"}},{"$f":"SUBTOTAL(109,Развлечения[Разница])","v":{"v":0,"d":"0.00 ₽"}}]
[]
[null,"Поездки",{"$nulls":6},"Прочее"]
[null,"Позиция","Выделенные","Фактические","Разница",{"$nulls":3},"Позиция","Выделенные","Фактические","Разница"]
[null,"Авиабилеты",null,null,{"$f":"Командировки[[#This Row],[Выделенные]]-Командировки[[#This Row],[Фактические]]","v":{"v":0,"d":"0.00 ₽"}},{"$nulls":3},"Праздничные фотографии",null,null,{"$f":"Прочее[[#This Row],[Выделенные]]-Прочее[[#This Row],[Фактические]]","v":{"v":0,"d":"0.00 ₽"}}]
[null,"Жилье",null,null,{"$f":"Командировки[[#This Row],[Выделенные]]-Командировки[[#This Row],[Фактические]]","v":{"v":0,"d":"0.00 ₽"}},{"$nulls":3},"Бензин ",null,null,{"$f":"Прочее[[#This Row],[Выделенные]]-Прочее[[#This Row],[Фактические]]","v":{"v":0,"d":"0.00 ₽"}}]
[null,"Транспорт",null,null,{"$f":"Командировки[[#This Row],[Выделенные]]-Командировки[[#This Row],[Фактические]]","v":{"v":0,"d":"0.00 ₽"}},{"$nulls":3},"Другое (нажмите клавишу TAB в последнем столбце этой строки, чтобы добавить строку)",null,null,{"$f":"Прочее[[#This Row],[Выделенные]]-Прочее[[#This Row],[Фактические]]","v":{"v":0,"d":"0.00 ₽"}}]
[null,"Другое (нажмите клавишу TAB в последнем столбце этой строки, чтобы добавить строку)",null,null,{"$f":"Командировки[[#This Row],[Выделенные]]-Командировки[[#This Row],[Фактические]]","v":{"v":0,"d":"0.00 ₽"}},{"$nulls":3},"Итог",{"$f":"SUBTOTAL(109,Прочее[Выделенные])","v":{"v":0,"d":"0.00 ₽"}},{"$f":"SUBTOTAL(109,Прочее[Фактические])","v":{"v":0,"d":"0.00 ₽"}},{"$f":"SUBTOTAL(109,Прочее[Разница])","v":{"v":0,"d":"0.00 ₽"}}]
[null,"Итог",{"$f":"SUBTOTAL(109,Командировки[Выделенные])","v":{"v":0,"d":"0.00 ₽"}},{"$f":"SUBTOTAL(109,Командировки[Фактические])","v":{"v":0,"d":"0.00 ₽"}},{"$f":"SUBTOTAL(109,Командировки[Разница])","v":{"v":0,"d":"0.00 ₽"}}]